Cogmind - Beta 12 @@@ ROGUE MODE // 2023.09.11 @ 13:04:08 Player: Eddbot Result: Destroyed by G-50 Soldier with Heavy Laser Performance ------------- Evolutions (4) 2000 Regions Visited (8) 1600 Robots Destroyed (49) 245 Value Destroyed (1628) 1628 Prototype IDs (28) 560 Alien Tech Used (0) 0 Bonus (800) 800 TOTAL SCORE: 6833 Bonus ------- Entered DSFs 500 Aligned with FarCom 300 Cogmind --------- Core Integrity 0/850 Matter 263/300 Energy 100/100 System Corruption 0% Temperature Cool (18) Movement Core (350) Ox6 Location -6/DSF Parts ------- > --- POWER (3) -------- (None) > --- PROPULSION (4) --- (None) > --- UTILITY (6) ------ Large Storage Unit > --- WEAPON (2) ------- (None) > --- INVENTORY (15) --- Improved Deuterium Engine Improved Deuterium Engine Improved Deuterium Engine Gravity Neutralizer Improved Terrain Scanner Seismic Detector Remote Datajack Mining Laser Peak State ------------ > --- POWER ------------ Improved Deuterium Engine Improved Deuterium Engine Improved Deuterium Engine > --- PROPULSION ------- Improved Medium Treads Improved Medium Treads Improved Medium Treads Improved Medium Treads > --- UTILITY ---------- Large Storage Unit Experimental Sensor Array Improved Terrain Scan Processor Kinecellerator Cloak of Protection Shield Generator > --- WEAPON ----------- Improved Medium Laser Heavy Machine Gun > --- INVENTORY -------- Improved Deuterium Engine Improved Deuterium Engine Improved Deuterium Engine Improved Deuterium Engine Improved Medium Treads Improved Medium Treads Gravity Neutralizer Improved Terrain Scanner Seismic Detector Hardened Light Armor Plating Proton Cannon Rocket Launcher Datajack Remote Datajack Mining Laser [Rating: 72] Favorites ----------- Power Ion Engine Engine Ion Engine Power Core Nuclear Core Propulsion Wheel Treads Improved Medium Treads Leg Carbon-fiber Leg Wheel Wheel Utility Large Storage Unit Device Improved Terrain Scanner Storage Large Storage Unit Processor Improved Terrain Scan Processor Protection Hardened Light Armor Plating Weapon AWS/Gauss Energy Gun Improved Medium Laser Energy Cannon Proton Cannon Ballistic Gun AWS/Gauss Launcher Rocket Launcher Special Weapon Mining Laser Special Melee Weapon Datajack Build | -11 -10 -10 -10 -9 -8 -7 -6 -6 ------- Run | Jun Mat Min Exi Min Mat Fac Fac DSF Slots Evolved 8 | . . . . . 4 2 2 . Power 2 | . . . . . 1 1 . . Propulsion 2 | . . . . . 2 . . . Utility 4 | . . . . . 1 1 2 . Weapon . | . . . . . . . . . Parts Attached 68 | 8 . . 4 8 9 11 8 20 Power 12 | 1 . . . 1 3 4 2 1 Engine 9 | 1 . . . 1 1 3 2 1 Core 3 | . . . . . 2 1 . . Reactor . | . . . . . . . . . Propulsion 21 | 2 . . . 2 2 4 1 10 Treads 8 | . . . . . . . . 8 Leg 5 | . . . . . . 3 . 2 Wheel 8 | 2 . . . 2 2 1 1 . Hover . | . . . . . . . . . Flight . | . . . . . . . . . Utility 18 | 3 . . 3 2 2 2 4 2 Device 14 | 2 . . 2 2 2 2 3 1 Storage 2 | 1 . . 1 . . . . . Processor 1 | . . . . . . . 1 . Hackware . | . . . . . . . . . Protection 1 | . . . . . . . . 1 Artifact . | . . . . . . . . . Weapon 17 | 2 . . 1 3 2 1 1 7 Energy Gun 4 | . . . . . 1 1 . 2 Energy Cannon 2 | . . . . . . . 1 1 Ballistic Gun 5 | 1 . . 1 1 1 . . 1 Ballistic Cannon . | . . . . . . . . . Launcher 1 | . . . . . . . . 1 Special Weapon 3 | 1 . . . 2 . . . . Impact Weapon . | . . . . . . . . . Slashing Weapon . | . . . . . . . . . Piercing Weapon . | . . . . . . . . . Special Melee Weapon 2 | . . . . . . . . 2 Unidentified Prototypes 4 | . . . 1 1 1 . 1 . Parts Lost 20 | . . . . . . 1 . 19 Power 4 | . . . . . . . . 4 Propulsion 8 | . . . . . . 1 . 7 Utility 5 | . . . . . . . . 5 Weapon 3 | . . . . . . . . 3 Highest Loss Streak 18 | . . . . . . 1 . 18 To Critical Strikes . | . . . . . . . . . Average Slot Usage (%) 88 | . 100 100 88 85 90 91 99 80 Engine 13 | . 14 14 14 14 9 9 20 15 Core 3 | . . . . . 8 12 . . Treads 1 | . . . . . . . . 16 Leg 1 | . . . . . . 1 13 3 Wheel 25 | . 28 28 28 28 36 28 13 1 Device 17 | . 14 14 14 14 18 23 26 17 Storage 11 | . 14 14 14 14 9 7 6 6 Ballistic Gun 10 | . 14 14 14 12 9 6 . 3 Special Weapon 1 | . 14 14 2 1 . . . . Naked Turns . | . . . . . . . . . Heaviest Build 82 | 11 11 11 34 36 45 71 73 82 Greatest Support 120 | 32 32 32 32 32 40 40 20 120 Greatest Overweight (x) 9 | . . . 1 1 1 4 3 9 Average Overweight (x) . | . . . . . . 1 3 . Largest Inventory Capacity 15 | 8 8 8 15 15 15 15 15 15 Average Capacity 13 | 7 8 8 10 15 15 15 15 15 Most Carried 15 | 8 8 8 11 15 15 15 13 15 Average Carried 11 | 3 7 8 8 14 13 14 11 13 Final Capacity 15 | 8 8 8 15 15 15 15 15 15 Final Carried 15 | 7 8 8 11 15 14 14 12 8 Class Distribution -------------------- 39% | Mutant 22% | Skirmisher 19% | Scavenger-Skirmisher 18% | Scavenger-Mutant Dominant Class ---------------- Mutant | -10/Materials Mutant | -10/Mines Mutant | -10/Exiles Skirmisher | -9/Mines Scavenger-Skirmisher | -8/Materials Scavenger-Mutant | -7/Factory Scavenger-Skirmisher | -6/Factory Mutant | -6/DSF Resources | -11 -10 -10 -10 -9 -8 -7 -6 -6 ----------- Run | Jun Mat Min Exi Min Mat Fac Fac DSF Matter Collected 948 | 342 . . . 120 23 97 . 366 Remotely . | . . . . . . . . . Salvage Created 2174 | 243 . . . 485 139 810 . 497 Parts 133 | 23 . . . 29 9 54 . 18 Haulers Intercepted . | . . . . . . . . . Recyclers Shooed 1 | . . . . . . 1 . . Parts Field Recycled . | . . . . . . . . . Retrieved Matter . | . . . . . . . . . Parts Self-Destructed . | . . . . . . . . . Prevented . | . . . . . . . . . Kills | -11 -10 -10 -10 -9 -8 -7 -6 -6 ------- Run | Jun Mat Min Exi Min Mat Fac Fac DSF Combat Hostiles Destroyed 32 | . . . . 12 1 14 . 5 Guns 31 | . . . . 12 1 14 . 4 AOE 1 | . . . . . . . . 1 Classes Destroyed 11 | 2 . . . 3 1 4 . 1 Builder 1 | . . . . . . 1 . . Tunneler 9 | 8 . . . 1 . . . . Recycler 1 | 1 . . . . . . . . Operator 2 | . . . . . . 2 . . Watcher 4 | . . . . . 3 1 . . Swarmer 6 | . . . . 3 . 2 . 1 Grunt 15 | . . . . 7 1 6 . 1 Duelist 1 | . . . . . . 1 . . Sentry 5 | . . . . 2 . 3 . . Specialist 3 | . . . . . . . . 3 Programmer 2 | . . . . . . 2 . . Best Kill Streak 8 | 4 . . . 3 2 8 . 2 Combat Bots Only 7 | . . . . 3 1 7 . 2 Max Kills in Single Turn 1 | 1 . . . 1 1 1 . 1 Gunslinging . | . . . . . . . . . Exploded 1 | . . . . . . . . 1 Melee . | . . . . . . . . . Uniques/NPCs Destroyed . | . . . . . . . . . Combat | -11 -10 -10 -10 -9 -8 -7 -6 -6 -------- Run | Jun Mat Min Exi Min Mat Fac Fac DSF Damage Taken 4037 | . 128 . . 146 65 405 . 3293 Core 1033 | . 35 . . 52 27 50 . 869 Absorbed by Shields 391 | . . . . . 24 157 . 210 Core Remaining (%) 88 | 100 . . . 65 95 92 . . Volleys Fired 106 | 62 2 . . 11 . 4 . 27 Largest 2 | 1 1 . . 1 . 1 . 2 Hottest 105 | 20 100 . . 100 . 56 . 105 Shots Fired 218 | 62 2 . . 36 17 63 . 38 Gun 192 | 62 . . . 25 17 63 . 25 Cannon 4 | . . . . . . . . 4 Launcher 9 | . . . . . . . . 9 Special 13 | . 2 . . 11 . . . . Kinetic 174 | 62 . . . 25 17 59 . 11 Thermal 31 | . 2 . . 11 . 4 . 14 Explosive 9 | . . . . . . . . 9 Electromagnetic 4 | . . . . . . . . 4 Robot Hit Streak 16 | 12 . . . 8 8 16 . 7 Robot Miss Streak 5 | 5 . . . 1 2 3 . 4 Penetration Max . | . . . . . . . . . Secondary Targets . | . . . . . . . . . Autonomous 102 | . . . . 25 17 60 . . Shots Hit Robots 150 | 38 . . . 22 13 48 . 29 Core Hits 91 | 15 . . . 14 5 25 . 32 Critical Kills 1 | . . . . 1 . . . . Critical Parts Destroyed 1 | . . . . . 1 . . . Critical Strikes 5 | . . . . 1 1 2 . 1 Burn 3 | . . . . . . 2 . 1 Destroy 2 | . . . . 1 1 . . . Melee Attacks 4 | . . . . . . . . 4 Impact . | . . . . . . . . . Slashing . | . . . . . . . . . Piercing . | . . . . . . . . . Sneak Attacks 3 | . . . . . . . . 3 Combat Hostiles 3 | . . . . . . . . 3 Follow-up Attacks . | . . . . . . . . . Damage Inflicted 4186 | 313 . . . 656 411 1483 . 1323 Guns 3285 | 313 . . . 656 411 1483 . 422 Cannons 28 | . . . . . . . . 28 Explosions 873 | . . . . . . . . 873 Melee . | . . . . . . . . . Ramming . | . . . . . . . . . Kinetic 2994 | 313 . . . 656 411 1432 . 182 Thermal 291 | . . . . . . 51 . 240 Explosive 873 | . . . . . . . . 873 Electromagnetic 28 | . . . . . . . . 28 Impact . | . . . . . . . . . Slashing . | . . . . . . . . . Piercing . | . . . . . . . . . Highest Corruption . | . . . . . . . . . Average Corruption . | . . . . . . . . . Corruption Purged . | . . . . . . . . . Corruption Blocked . | . . . . . . . . . Overload Shots . | . . . . . . . . . Overflow Damage 16 | . . . . . . . . 16 Projectiles . | . . . . . . . . . Explosions 16 | . . . . . . . . 16 Melee . | . . . . . . . . . Knockbacks . | . . . . . . . . . Impact . | . . . . . . . . . Kinetic . | . . . . . . . . . Secondary . | . . . . . . . . . Self-Inflicted Damage 95 | . . . . . . . . 95 Shots 2 | . . . . . . . . 2 Rammed . | . . . . . . . . . Targets Rammed . | . . . . . . . . . Kicked . | . . . . . . . . . Crushed . | . . . . . . . . . Highest Temperature 144 | . 32 . . 60 . 144 . 97 Average Temperature 33 | . 17 . . 23 . 70 . 30 Received Heat Transfer 996 | . 57 . . 54 6 86 . 793 Siege Activations . | . . . . . . . . . Robots Corrupted . | . . . . . . . . . Combat Hostiles . | . . . . . . . . . Parts Fried . | . . . . . . . . . Impact Corruptions . | . . . . . . . . . Robots Melted . | . . . . . . . . . Combat Hostiles . | . . . . . . . . . Parts Melted 1 | . . . . . . . . 1 Heat Transferred 851 | . . . . . . 259 . 592 Parts Sabotaged . | . . . . . . . . . Parts Stolen . | . . . . . . . . . Parts Stripped . | . . . . . . . . . Power Chain Reactions . | . . . . . . . . . Missiles Intercepted . | . . . . . . . . . Alert | -11 -10 -10 -10 -9 -8 -7 -6 -6 ------- Run | Jun Mat Min Exi Min Mat Fac Fac DSF Peak Influence 299 | 45 31 12 . 244 135 299 141 231 Initial 141 | . 29 12 . . 36 60 141 102 Average 91 | 25 29 12 . 78 68 136 141 142 Maximum Alert Level 1 | . . . . 1 . 1 . 1 Low Security (%) 90 | 100 100 100 . 90 100 75 100 96 Level 1 9 | . . . . 9 . 24 . 3 Level 2 . | . . . . . . . . . Level 3 . | . . . . . . . . . Level 4 . | . . . . . . . . . Level 5 . | . . . . . . . . . High Security . | . . . . . . . . . Max Security . | . . . . . . . . . Squads Dispatched 5 | . 1 . . . . 2 . 2 Investigation 1 | . 1 . . . . . . . Extermination . | . . . . . . . . . Reinforcement 3 | . . . . . . 1 . 2 Assault . | . . . . . . . . . Garrison 1 | . . . . . . 1 . . Intercept . | . . . . . . . . . Searches Triggered . | . . . . . . . . . Construction Impeded 1 | . . . . . . 1 . . Haulers Reinforced . | . . . . . . . . . Active Scanning Responses . | . . . . . . . . . Cargo Convoy Interrupts . | . . . . . . . . . Stealth | -11 -10 -10 -10 -9 -8 -7 -6 -6 --------- Run | Jun Mat Min Exi Min Mat Fac Fac DSF Distress Signals 1 | . . . . . 1 . . . Communications Jammed . | . . . . . . . . . Distress Signals . | . . . . . . . . . Times Spotted 60 | . 9 3 . 12 5 18 . 13 Peak Tracking Total 12 | . 10 12 . 3 2 5 . 9 Tactical Retreats 2 | . . 1 . . . . . 1 Traps | -11 -10 -10 -10 -9 -8 -7 -6 -6 ------- Run | Jun Mat Min Exi Min Mat Fac Fac DSF Traps Triggered 3 | . . . . . . 3 . . Indirectly . | . . . . . . . . . Trap Hack Attempts . | . . . . . . . . . Triggered . | . . . . . . . . . Disarmed . | . . . . . . . . . Reprogrammed 1 | . . . . . . 1 . . Reused . | . . . . . . . . . Traps Extracted . | . . . . . . . . . Installed . | . . . . . . . . . Triggered . | . . . . . . . . . Machines | -11 -10 -10 -10 -9 -8 -7 -6 -6 ---------- Run | Jun Mat Min Exi Min Mat Fac Fac DSF Machines Disabled 3 | . . . . 1 . 1 . 1 Max in Single Turn 1 | . . . . 1 . 1 . 1 Machines Repaired . | . . . . . . . . . Machines Sabotaged . | . . . . . . . . . Overloaded Fab Kills . | . . . . . . . . . Hacking | -11 -10 -10 -10 -9 -8 -7 -6 -6 --------- Run | Jun Mat Min Exi Min Mat Fac Fac DSF Machines Accessed 15 | . 1 . 4 . 3 6 1 . Terminals 6 | . . . . . 1 4 1 . Fabricators 1 | . . . . . . 1 . . Repair Stations . | . . . . . . . . . Recycling Units 3 | . 1 . . . 1 1 . . Scanalyzers 1 | . . . . . 1 . . . Garrison Access . | . . . . . . . . . Total Hacks 57 | . 2 . 31 . 7 16 1 . Successful 45 | . . . 31 . 5 8 1 . Failed 12 | . 2 . . . 2 8 . . Catastrophic 3 | . 1 . . . . 2 . . Database Lockouts . | . . . . . . . . . Manual 1 | . . . 1 . . . . . Terminals 18 | . . . . . 4 13 1 . Fabricators 1 | . . . . . . 1 . . Repair Stations . | . . . . . . . . . Recycling Units 5 | . 2 . . . 1 2 . . Scanalyzers 2 | . . . . . 2 . . . Garrison Access . | . . . . . . . . . Terminal Hacks 42 | . . . 31 . 3 7 1 . Record 35 | . . . 30 . 2 3 . . Prototype ID Bank 1 | . . . . . . 1 . . Open DSF 2 | . . . . . . 1 1 . Emergency Access Points 1 | . . . . . 1 . . . Locate Traps 1 | . . . . . . 1 . . Reprogram Traps 1 | . . . . . . 1 . . EX-Prototype ID Bank 1 | . . . 1 . . . . . Fabricator Hacks 1 | . . . . . . 1 . . Build 1 | . . . . . . 1 . . Repair Station Hacks . | . . . . . . . . . Recycling Unit Hacks 1 | . . . . . 1 . . . Retrieve Components 1 | . . . . . 1 . . . Scanalyzer 1 | . . . . . 1 . . . Insert Component 1 | . . . . . 1 . . . Garrison Access Hacks . | . . . . . . . . . Unauthorized Hacks . | . . . . . . . . . Terminals . | . . . . . . . . . Fabricators . | . . . . . . . . . Repair Stations . | . . . . . . . . . Recycling Units . | . . . . . . . . . Scanalyzers . | . . . . . . . . . Garrison Access . | . . . . . . . . . Data Cores Recovered 2 | . . . . . . 2 . . Used 1 | . . . . . . 1 . . Hacking Detections 8 | . 1 . . . 2 5 . . Full Trace Events 1 | . 1 . . . . . . . Feedback Events . | . . . . . . . . . Feedback Blocked . | . . . . . . . . . Robot Schematics Acquired . | . . . . . . . . . Robots Built . | . . . . . . . . . Authchips . | . . . . . . . . . Time . | . . . . . . . . . Total Robot Build Rating . | . . . . . . . . . Part Schematics Acquired . | . . . . . . . . . Parts Built 2 | . . . . . . 2 . . Authchips . | . . . . . . . . . Time 95 | . . . . . . 95 . . Total Part Build Rating 10 | . . . . . . 10 . . Parts Repaired . | . . . . . . . . . Time . | . . . . . . . . . Parts Recycled . | . . . . . . . . . Recycled Matter . | . . . . . . . . . Retrieved Matter . | . . . . . . . . . Retrieved Components 2 | . . . . . 2 . . . Parts Scanalyzed . | . . . . . . . . . Part Schematics Acquired . | . . . . . . . . . Parts Damaged . | . . . . . . . . . Bothacking | -11 -10 -10 -10 -9 -8 -7 -6 -6 ------------ Run | Jun Mat Min Exi Min Mat Fac Fac DSF Used RIF Installer . | . . . . . . . . . Robots Hacked . | . . . . . . . . . Non-combat . | . . . . . . . . . Combat . | . . . . . . . . . Robot Hacks Applied . | . . . . . . . . . Relay Couplers Released . | . . . . . . . . . Fabnet Peak Effective % . | . . . . . . . . . Robots Rewired . | . . . . . . . . . Allies Hacked . | . . . . . . . . . Hacks Repelled . | . . . . . . . . . Allies | -11 -10 -10 -10 -9 -8 -7 -6 -6 -------- Run | Jun Mat Min Exi Min Mat Fac Fac DSF Total Allies . | . . . . . . . . . Largest Group . | . . . . . . . . . Highest-Rated Group . | . . . . . . . . . Highest-Rated Ally . | . . . . . . . . . Total Orders . | . . . . . . . . . Ally Attacks . | . . . . . . . . . Total Damage . | . . . . . . . . . Kills . | . . . . . . . . . Allies Corrupted . | . . . . . . . . . Allies Melted . | . . . . . . . . . Intel | -11 -10 -10 -10 -9 -8 -7 -6 -6 ------- Run | Jun Mat Min Exi Min Mat Fac Fac DSF Robot Analysis Total . | . . . . . . . . . Derelict Logs Recovered 3 | . . 1 . 2 . . . . Drone Launches . | . . . . . . . . . Drone Recoveries . | . . . . . . . . . Exploration | -11 -10 -10 -10 -9 -8 -7 -6 -6 ------------- Run | Jun Mat Min Exi Min Mat Fac Fac DSF Turns Passed 3580 | 339 74 87 668 1022 261 648 197 284 Spaces Moved 2735 | 204 66 86 624 791 184 542 138 100 Core 8 | 3 . . . . . . . 5 Treads 78 | . . . . . . . . 78 Legs 30 | . . . . . . 18 . 12 Wheels 2619 | 201 66 86 624 791 184 524 138 5 Hover . | . . . . . . . . . Flight . | . . . . . . . . . Fastest Speed 50 | 50 100 100 100 95 80 95 125 125 Average Speed 105 | 99 100 100 104 101 94 100 125 180 Slowest Speed 500 | 100 100 100 115 115 95 400 125 500 Overloaded Moves . | . . . . . . . . . Propulsion Burnouts . | . . . . . . . . . Robots Hopped . | . . . . . . . . . Cave-ins Triggered . | . . . . . . . . . Exploration Rate (%) 37 | 6 26 20 92 100 18 16 3 60 Regions Visited 8 Branch Regions 3 Pre-discovered Areas 2 | . . 1 1 . . . . . Known Exits Taken 1 | . . . . . . . 1 . Unknown Exits Taken 7 | 1 1 1 1 1 1 1 . . Scrap Searched 2 | . . . . 2 . . . . Spaces Dug 3 | . 2 . . 1 . . . . Terrain Destroyed 90 | . 2 . . 17 12 19 . 40 Melee . | . . . . . . . . . Projectile 50 | . 2 . . 17 12 19 . . AOE 40 | . . . . . . . . 40 Terrain Rammed . | . . . . . . . . . Walls Destroyed . | . . . . . . . . . Machines Disabled . | . . . . . . . . . Actions | -11 -10 -10 -10 -9 -8 -7 -6 -6 --------- Run | Jun Mat Min Exi Min Mat Fac Fac DSF Total 3308 | 291 68 87 642 976 271 645 161 167 Wait 294 | . . 2 4 150 70 53 13 2 Move 2727 | 203 65 85 623 790 183 541 137 100 Hop . | . . . . . . . . . Pick Up 53 | 16 1 . 6 8 5 8 2 7 Fast Attach 4 | . . . . . . 3 . 1 Attach 35 | 7 . . 1 3 7 3 5 9 Detach 6 | . . . . 3 2 . 1 . Swap 29 | 1 . . 3 5 2 5 3 10 Drop 34 | 2 . . 5 6 2 12 . 7 Fire 106 | 62 2 . . 11 . 4 . 27 Melee 4 | . . . . . . . . 4 Ram . | . . . . . . . . . Kick . | . . . . . . . . . Crush . | . . . . . . . . . Escape Stasis 16 | . . . . . . 16 . . Rewire . | . . . . . . . . . Trap . | . . . . . . . . . Miscellaneous . | . . . . . . . . . Route ------- -11/Junkyard -10/Materials -10/Mines -10/Exiles (discovered 2 exits: [*Min x2]) -9/Mines (discovered 2 exits: *Mat x2) -8/Materials -7/Factory -6/Factory -6/DSF History --------- Turn | Location | Event 23 | -11/Junkyard | Discovered new exit (range 15) 340 | -11/Junkyard | Entered Materials 357 | -10/Materials | Build established: Mutant 410 | -10/Materials | Discovered new exit (range 5) 414 | -10/Materials | Entered Mines 460 | -10/Mines | Assembled infested the area 461 | -10/Mines | Learned location of Mines (-9) 465 | -10/Mines | Assisted by a Guerilla fighting off Assembled 496 | -10/Mines | Deemed a non-threat by the Exiles lab entrance 497 | -10/Mines | Discovered new exit (range 5) 501 | -10/Mines | Entered Exiles 515 | -10/Exiles | Discovered new exit (range 15) 548 | -10/Exiles | Met 8R-AWN 565 | -10/Exiles | Met EX-HEX 595 | -10/Exiles | Met EX-BIN 606 | -10/Exiles | Aligned with FarCom system 607 | -10/Exiles | Given EX-Vault access code 630 | -10/Exiles | Opened EX-Vault 640 | -10/Exiles | Found Prototype Ballistic Gun 642 | -10/Exiles | Identified AWS/Gauss 651 | -10/Exiles | Found Cloak of Protection 706 | -10/Exiles | Warned to stay clear of 0b10 Research branches 735 | -10/Exiles | Met EX-DEC 799 | -10/Exiles | Visited The Gauntlet 909 | -10/Exiles | Learned location of Zion (-6) 1160 | -10/Exiles | Discovered new exit (range 10) 1169 | -10/Exiles | Stole two prototypes: AWS/Gauss, Cloak of Protection 1169 | -10/Exiles | Entered Mines 1204 | -9/Mines | Met a Derelict bent on vengeance 1325 | -9/Mines | Excavation squad dispatched 1325 | -9/Mines | A large section of the Mines collapsed 1388 | -9/Mines | A weapon hastily lodged in a ceiling crevice suddenly fell to the ground 1458 | -9/Mines | Found a damaged Exp. Sensor Array with a note attached 1460 | -9/Mines | Found Prototype Device 1461 | -9/Mines | Identified Exp. Sensor Array 1575 | -9/Mines | Excavation squad dispatched 1662 | -9/Mines | Discovered new exit (range 8) 1690 | -9/Mines | Build established: Skirmisher 1806 | -9/Mines | Learned Materials security intel 1962 | -9/Mines | Discovered new exit (range 5) 1999 | -9/Mines | Received a Rocket Launcher from a helpful Derelict 2191 | -9/Mines | Entered Materials 2191 | -8/Materials | Evolved 4 slots: Power x1, Propulsion x2, Utility x1 2305 | -8/Materials | Build established: Scavenger-Skirmisher 2438 | -8/Materials | Discovered new exit (range 16) 2452 | -8/Materials | Entered Factory 2452 | -7/Factory | Evolved 2 slots: Power x1, Utility x1 2454 | -7/Factory | FarCom data flow suspended 2734 | -7/Factory | Fabricated Nuclear Pulse Thruster? 2748 | -7/Factory | Build established: Scavenger-Mutant 2975 | -7/Factory | Discovered new exit (range 8) 3030 | -7/Factory | Garrison activated, responded to threat 3077 | -7/Factory | Destroyed 7 combat bots 3100 | -7/Factory | Entered another Factory area 3100 | -6/Factory | Evolved 2 slots: Utility x2 3297 | -6/Factory | Identified exit to DSF 3297 | -6/Factory | Entered DSF 3344 | -6/DSF | Additional patrols routed to DSF 3560 | -6/DSF | Core integrity fell below 50% 3571 | -6/DSF | Core integrity fell below 20% 3581 | -6/DSF | Destroyed by G-50 Soldier with Heavy Laser Last Messages --------------- 03530_ Imp. Medium Treads destroyed. 03532_ The unstable cave ceiling collapses. 03537_ Imp. Medium Treads destroyed. 03540_ Critical hit (Burn: +37). 03546_ Imp. Medium Treads destroyed. 03551_ Penetrated by Slug. 03551_ Acquired 7 matter. 03551_ C-30 ARC bursts open, deploying its payload. 03551_ S-27 Virus unfolds itself. 03555_ Critical hit (Burn: +37). 03557_ Imp. Medium Treads destroyed. 03560_ S-27 Virus destroyed. 03561_ Imp. Medium Laser destroyed. 03561_ Critical hit (Blast). 03561_ Imp. Terrain Scan Processor destroyed. 03562_ Acquired 7 matter. 03563_ S-27 Virus destroyed. 03575_ Acquired 108 matter. 03578_ S-27 Virus destroyed. 03581_ Imp. Deuterium Engine destroyed. Map ----- +----------------------------------------------------+ | | | | | ????????????????????????????????????? | | ????????????????????????????????????? | | ????????????????????????????????????? | | ????????????????????????????????????? | | ????????????????????????????????????? | | ????????????????????????????????????? | | ????????????????????????????????????? | | ????????????????????????????????????? | | ????????????????????????????????????? | | ????????????????????????????????????? | | ????????????????????????????????????? | | ????????????????????????????????????? | | ???????????????????????? ?#????????? | | ?????????????????????!!^^ ????????? | | ?????????????????????!! ????????? | | ??????????????????????! ?????????? | | ????????????????????### ###???????? | | ????????????????????#// !!#???????? | | ????????????????????#// !!#???????? | | ????????????????????#// !!#####???? | | ??????#?????######### # # # # ##### | | ??????#!!???# #!!!## === !!!# | | ??????#!! ## #!!!# % === !!!" | | ??????#!! @ [s*H | | ??????#!! %gg g g | | ??????#!! =% % % | | ??????#** ## #!!!; % %# !!"!!! | | ??????#** ?# #!!!## %!!!#!!! | | ??????### ??########## ######### | | ???????? ???????#??#! ]]#??#####= | | ???????# ??????#????#!! ]]#??# ? #= | | ???????# ????????#?##!! ]]#?#? ###= | | ???????#????????????### ###?# #### | | ????????????????????# ]?? ??#??# | | ???????????????#??##? ]]?#?#??## | | ???????????????##???# ]]######### | | ?????????????????? ### ###= =#==## | | ????????????????# ### ###= #==## | | ????????????? = [![[ | | ????????????? !! | | ????????????????#[[[#!!!!!!!# #==## | | ?????????????????#??#!!!!!!!######### | | ?????????????????#??#########?#####?# | | ?????????????????##?##?#?#??#??##?#?# | | ?????????????????#??#???######?##??## | | ???????????????????#?##????###?#??##? | | ???????????????????#?##?###??##?#?### | | ??????????????????????###?#?###??#### | +----------------------------------------------------+ Best States ------------- Heat Dissipation 37 Energy Generation 38 Energy Capacity 670 Matter Stores 300 Matter Capacity 300 Sight Range 16 Robot Scan Range 20 Terrain Scan Range 16 Terrain Scan Density 110 Cloak Strength 5 Armor Coverage 150 Evasion (%) 41 Recoil Reduction 4 Kinecelleration 30 Item Schematics ----------------- None Robot Schematics ------------------ None Fabricated ------------ Nuclear Pulse Thruster | x2 | -7/Factory | Preloaded Alien Tech Used ----------------- None Achievements -------------- None Challenges ------------ None Game ------ Seed TerrabombWeightHumpback Manual? 0 Play Time 00:56:10 Cumulative 32.7 hours Start 2023.09.10 @ 12:04:50 End 2023.09.11 @ 13:04:08 Sessions 3 Manual Loads 0 Difficulty Rogue Special Mode None Game No. 69 Rogue 69 Adventurer 0 Explorer 0 Win Type - Total 0 Types 0/0/0/0/0/0/0/0/0 Lore% 25 Gallery% 26 Achievement% 23 Wizard Run 0 Options --------- ASCII 0 Keyboard 0 Movement Mouse Keybinds 0 Fullscreen 1 Font 18/SmallcapsGlow Map View 76x50 Tactical HUD 1 Map Filters NONE Filters NONE Steam 1 RUN: 623bf2a2-bc2f-4d99-803e-7f9a9117d525